bitfinex/quotes_SOLUSD_20220210
["timestamp","ask_amount","ask_price","bid_price","bid_amount"]
[1644489387597,0.024,114.38,114.32,55.59577891]
[1644489388697,0.024,114.38,114.32,55.84577891]
[1644489389900,0.024,114.38,114.33,4.372]
[1644489390105,5.0,114.39,114.34,13.1182]
[1644489390300,0.024,114.38,114.34,19.1182]
[1644489390499,5.0,114.39,114.34,19.1182]
[1644489390903,53.1906627,114.39,114.34,13.1182]
[1644489391104,5.0,114.39,114.34,13.1182]
[1644489393105,5.0,114.39,114.27,16.93545808]
[1644489393106,94.0,114.38,114.27,16.93545808]
[1644489393306,0.30225654,114.33,114.11,6.12237468]
[1644489393504,0.30225654,114.33,114.14,1.21680531]
[1644489393505,155.81,114.27,114.14,1.21680531]
[1644489393705,0.30791248,114.22,114.08,7.48587531]
[1644489393905,155.81,114.16,114.09,84.73071597]
[1644489394107,155.81,114.18,114.1,45.14630853]
[1644489394528,155.81,114.15,114.1,45.14630853]
[1644489394730,16.841,114.14,114.1,45.14630853]
[1644489395929,12.46,114.14,114.1,45.14630853]
[1644489396531,4.381,114.17,114.1,45.14630853]
[1644489396729,12.46,114.16,114.11,4.38]
[1644489396934,12.46,114.16,114.12,45.17034041]
[1644489397128,12.46,114.16,114.11,0.25]
[1644489398229,12.46,114.16,114.06,6.05290963]
[1644489398429,12.46,114.16,114.08,47.1851634]
[1644489398628,12.46,114.16,114.1,43.65114703]
[1644489400932,12.46,114.16,114.1,43.90114703]
[1644489404132,12.46,114.16,114.1,43.65114703]
[1644489404531,4.38,114.17,114.12,38.72326226]
[1644489404733,12.46,114.17,114.12,38.72326226]
[1644489405135,4.38,114.21,114.12,38.72326226]
[1644489405333,12.46,114.2,114.12,38.72326226]
[1644489405833,12.46,114.2,114.12,38.97326226]
[1644489406835,4.378,114.19,114.12,38.97326226]
[1644489407235,4.378,114.19,114.12,44.97326226]
[1644489407439,12.46,114.2,114.12,44.97326226]
[1644489407637,12.46,114.22,114.12,54.22726226]
[1644489408639,12.46,114.22,114.13,0.024]
[1644489408838,12.46,114.22,114.15,43.02628577]
[1644489409038,12.46,114.22,114.16,4.402]
[1644489409239,12.46,114.22,114.17,40.61589882]
[1644489412545,4.378,114.21,114.17,40.61589882]
[1644489412743,24.8382,114.24,114.17,40.86589882]
[1644489413044,24.8382,114.24,114.19,39.68680863]
[1644489413243,4.377,114.26,114.19,39.68680863]
[1644489413443,12.46,114.24,114.2,0.024]
[1644489413643,4.377,114.23,114.19,39.71080863]
[1644489413943,4.377,114.23,114.19,39.68680863]
[1644489414142,11.40820833,114.26,114.19,39.68680863]
[1644489414344,12.46,114.25,114.2,4.401]
[1644489414543,27.0915,114.28,114.21,40.10081086]
[1644489414544,12.46,114.27,114.21,40.10081086]
[1644489415147,4.376,114.26,114.21,40.10081086]
[1644489416144,4.376,114.26,114.21,39.20081086]
[1644489416545,12.46,114.25,114.21,39.20081086]
[1644489416745,4.377,114.24,114.21,39.20081086]
[1644489416945,12.46,114.25,114.21,39.20081086]
[1644489419950,12.46,114.25,114.16,4.377]
[1644489420153,12.46,114.25,114.16,0.25]
[1644489420351,2.23122154,114.24,114.14,4.378]
[1644489420551,12.46,114.23,114.1,4.378]
[1644489420751,12.46,114.23,114.11,0.25]
[1644489420951,4.378,114.22,114.13,39.13322204]
[1644489421150,26.09942987,114.23,114.13,39.13322204]
[1644489421151,12.46,114.21,114.13,39.13322204]
[1644489421352,12.46,114.2,114.15,38.62810567]
[1644489422352,12.46,114.2,114.03,2.43361063]
[1644489422553,155.81,114.13,113.97,2.43361063]
[1644489422756,12.46,114.12,113.97,2.43361063]
[1644489422958,16.843,114.11,113.98,2.43361063]
[1644489423154,12.46,114.1,113.98,2.43361063]
[1644489423355,12.46,114.1,113.99,48.00343697]
[1644489423555,4.384,114.09,113.99,48.00343697]
[1644489423759,30.0015,114.09,113.99,48.00343697]
[1644489424155,43.64092987,114.09,113.99,48.00343697]
[1644489424654,181.4275,114.09,113.99,48.00343697]
[1644489424856,17.5431,114.08,113.99,48.00343697]
[1644489425055,12.46,114.07,113.99,48.00343697]
[1644489425258,4.384,114.06,113.99,48.00343697]
[1644489425455,160.194,114.09,113.99,48.00343697]
[1644489425655,4.384,114.12,114.01,44.0]
[1644489425855,12.46,114.1,114.02,43.66014614]
[1644489426055,12.46,114.11,114.02,43.66014614]
[1644489426254,12.46,114.13,114.02,56.81154614]
[1644489426857,12.46,114.13,114.02,63.06154614]
[1644489429862,12.46,114.13,114.02,49.91014614]
[1644489430063,12.46,114.13,114.04,38.61238201]
[1644489430263,12.46,114.13,114.06,38.42570549]
[1644489430461,12.46,114.13,114.08,37.80150215]
[1644489430659,23.9128,114.15,114.08,37.80150215]
[1644489430660,36.3728,114.15,114.08,37.80150215]
[1644489430962,36.3728,114.15,114.08,38.05150215]
[1644489431161,17.5307,114.17,114.08,38.05150215]
[1644489431162,13.1487,114.17,114.08,38.05150215]
[1644489431367,12.46,114.18,114.09,4.381]
[1644489431561,13.1462,114.19,114.1,42.7727549]
[1644489431760,13.1462,114.19,114.1,43.0467549]
[1644489431963,13.1462,114.19,114.11,0.024]
[1644489432164,17.5262,114.19,114.11,0.024]
[1644489432963,17.5262,114.19,113.99,4.57549628]
[1644489432964,0.45,114.16,113.99,4.57549628]
[1644489433162,156.12141405,114.14,113.98,2.43361063]
[1644489433366,155.81,114.12,113.91,43.8659]
[1644489433563,155.81,114.12,113.9,12.46]
[1644489433564,155.81,114.1,113.9,12.46]
[1644489433764,12.46,114.09,113.9,100.21]
[1644489433968,13.1617,114.05,113.93,38.16902081]
[1644489434168,4.386,114.04,113.93,38.16902081]
[1644489434364,4.386,114.04,113.93,44.16902081]
[1644489434866,16.846,114.04,113.93,44.16902081]
[1644489435687,30.0093,114.04,113.93,44.16902081]
[1644489435867,25.6233,114.04,113.93,44.16902081]
[1644489436567,25.6233,114.04,113.93,44.41902081]
[1644489437972,12.46,114.04,113.93,44.41902081]
[1644489438173,4.386,114.03,113.93,57.57992081]
[1644489438873,12.46,114.04,113.93,57.57992081]
[1644489440973,12.46,114.04,113.94,4.386]
[1644489441274,12.46,114.04,113.95,56.67043715]
[1644489441672,12.46,114.04,113.95,49.76153715]
[1644489442073,12.46,114.04,113.97,42.58360082]
[1644489442273,12.46,114.04,113.97,42.83360082]
[1644489443399,12.46,114.04,113.99,42.75489858]
[1644489443799,12.46,114.04,113.99,43.00489858]
[1644489444201,17.546,114.07,113.99,43.00489858]
[1644489444503,12.46,114.06,113.99,43.00489858]
[1644489445004,17.546,114.07,113.99,43.00489858]
[1644489445203,10.54,114.06,113.99,43.00489858]
[1644489447403,4.385,114.09,114.02,46.0]
[1644489447804,4.385,114.09,114.02,0.25]
[1644489448004,33.9061,114.11,114.02,0.25]
[1644489448307,10.54,114.11,114.04,37.04482734]
[1644489448703,10.54,114.11,114.04,37.06882734]
[1644489449304,10.54,114.11,114.04,37.31882734]
[1644489450105,14.923,114.11,114.04,37.31882734]
[1644489451604,10.54,114.11,114.04,37.31882734]
[1644489452405,14.923,114.11,114.04,37.31882734]
[1644489454308,28.0773,114.11,114.04,37.06882734]
[1644489454909,28.0773,114.11,114.04,37.31882734]
[1644489456613,23.6943,114.11,114.04,37.31882734]
[1644489458315,10.54,114.11,114.04,37.31882734]
[1644489459615,48.51482473,114.11,114.04,37.31882734]
[1644489459915,61.66892473,114.11,114.04,37.31882734]
[1644489460219,4.383,114.1,114.04,37.31882734]
[1644489460514,10.54,114.09,114.04,37.29482734]
[1644489461521,10.54,114.09,114.04,37.04482734]
[1644489461719,4.383,114.08,114.04,37.04482734]
[1644489461944,10.54,114.07,114.04,37.04482734]
[1644489462720,23.6984,114.07,114.04,37.04482734]
[1644489464224,23.6984,114.07,113.98,0.024]
[1644489464421,17.543,114.06,113.98,0.024]
[1644489464822,13.16,114.06,113.98,0.024]
[1644489465925,17.545,114.06,113.97,43.05290152]
[1644489466126,28.085,114.06,113.97,43.07690152]
[1644489466325,23.7,114.06,113.98,0.024]
[1644489467825,362.75028105,114.09,114.01,61.0]
[1644489468027,362.75028105,114.09,114.02,45.81186636]
[1644489468426,362.75028105,114.09,114.02,46.06186636]
[1644489469926,362.75028105,114.09,114.02,59.21546636]
[1644489471729,362.75028105,114.09,114.02,65.21546636]
[1644489473633,41.91387003,114.08,114.01,0.024]
[1644489473831,4.384,114.07,113.95,4.88806759]
[1644489474031,4.384,114.07,113.93,2.43361063]
[1644489474032,10.54,114.06,113.93,2.43361063]
[1644489474234,4.70314953,114.05,113.89,6.81961063]
[1644489474434,10.54,114.04,113.89,4.386]
[1644489474633,4.386,114.03,113.9,40.95763951]
[1644489474833,57.56534711,114.02,113.91,4.386]
[1644489475034,4.386,114.01,113.92,41.99534762]
[1644489475235,4.386,114.01,113.92,47.99534762]
[1644489475436,48.2797,114.01,113.92,47.99534762]
[1644489477056,68.41068218,114.01,113.92,41.99534762]
[1644489477260,70.64190372,114.01,113.92,41.99534762]
[1644489478454,84.95495506,114.01,113.92,41.99534762]
[1644489478653,64.82397288,114.01,113.92,41.99534762]
[1644489479052,64.82397288,114.01,113.86,2.0]
[1644489479253,226.1223834,114.01,113.86,2.0]
[1644489479553,249.9986834,114.01,113.86,2.0]
[1644489479955,162.2486834,114.01,113.86,2.0]
[1644489480164,180.77735176,114.01,113.87,41.12310464]
[1644489480363,159.56746186,114.01,113.87,41.12310464]
[1644489481562,151.25946186,114.01,113.87,41.12310464]
[1644489481759,151.25946186,114.01,113.87,41.37310464]
[1644489482359,134.62555134,114.01,113.87,41.37310464]
[1644489485162,151.04279519,114.01,113.87,41.12310464]
[1644489485363,282.77279519,114.01,113.87,41.12310464]
[1644489487871,282.77279519,114.01,113.87,41.37310464]
[1644489488966,282.77279519,114.01,113.87,41.12310464]
[1644489489766,282.77279519,114.01,113.88,0.024]
[1644489491272,283.09466665,114.01,113.88,0.024]
[1644489492070,282.77279519,114.01,113.88,0.024]
[1644489496374,282.77279519,114.01,113.88,13.1945]
[1644489496575,120.3125,114.01,113.89,43.20616329]
[1644489496777,120.3125,114.01,113.9,0.024]
[1644489497077,76.4188,114.01,113.9,0.024]
[1644489497684,533.21993535,114.02,113.91,13.167]
[1644489497879,533.21993535,114.02,113.92,45.6446104]
[1644489498081,533.21993535,114.02,113.93,0.024]
[1644489498880,533.21993535,114.02,113.94,13.1642]
[1644489499081,533.21993535,114.02,113.95,45.46354693]
[1644489499283,533.21993535,114.02,113.95,45.73754693]
[1644489499984,533.21993535,114.02,113.95,69.92364693]
[1644489500482,533.21993535,114.02,113.95,75.92364693]
[1644489501083,533.21993535,114.02,113.95,64.90064693]
[1644489501284,533.21993535,114.02,113.95,58.65064693]
[1644489501484,533.21993535,114.02,113.95,45.48754693]
[1644489502283,546.38473535,114.02,113.95,45.48754693]
[1644489502484,4.386,114.01,113.95,45.48754693]
[1644489502683,4.386,114.01,113.95,45.46354693]
[1644489504385,17.036,114.01,113.95,45.46354693]
[1644489505185,12.65,114.01,113.95,45.46354693]
[1644489505386,537.60593535,114.02,113.95,45.46354693]
[1644489505586,533.21993535,114.02,113.95,45.48754693]
[1644489505789,533.21993535,114.02,113.95,45.73754693]
[1644489506686,4.386,114.01,113.95,45.48754693]
[1644489506887,533.21993535,114.02,113.95,45.71354693]
[1644489507086,533.21993535,114.02,113.95,45.73754693]
[1644489508089,533.21993535,114.02,113.95,45.48754693]
[1644489508090,546.38453535,114.02,113.95,45.48754693]
[1644489508295,4.386,114.01,113.95,45.46354693]
[1644489508490,537.60593535,114.02,113.95,45.46354693]
[1644489509290,581.50143535,114.02,113.95,45.46354693]
[1644489509490,537.60593535,114.02,113.95,45.46354693]
[1644489509691,550.25593535,114.02,113.95,45.46354693]
[1644489510724,43.8988,114.01,113.95,45.46354693]
[1644489510918,533.21993535,114.02,113.95,45.46354693]
[1644489511719,546.38513535,114.02,113.95,45.71354693]
[1644489513720,533.21993535,114.02,113.95,58.87744693]
[1644489514921,533.21993535,114.02,113.95,58.90144693]
[1644489515921,546.38393535,114.02,113.95,58.90144693]
[1644489516124,546.38393535,114.02,113.95,58.87744693]
[1644489517622,546.38393535,114.02,113.95,58.62744693]
[1644489518025,546.38393535,114.02,113.95,45.46354693]
[1644489518223,17.5518,114.01,113.95,45.46354693]
[1644489519523,13.1658,114.01,113.95,45.46354693]
[1644489521228,13.1658,114.01,113.95,58.62794693]
[1644489521428,533.21993535,114.02,113.95,58.87794693]
[1644489523730,533.21993535,114.02,113.95,71.52794693]
[1644489524129,533.21993535,114.02,113.95,71.55194693]
[1644489524331,533.21993535,114.02,113.95,77.55194693]
[1644489525530,141.90665462,114.02,113.95,32.0884]
[1644489525729,4.386,114.05,113.96,1.96363899]
[1644489525929,1.24854445,114.07,113.96,1.96363899]
[1644489525930,13.158,114.07,113.98,13.1575]
[1644489526132,1.24854445,114.08,113.98,13.1575]
[1644489526333,142.74852308,114.11,113.98,13.1575]
[1644489526334,1.24854445,114.09,113.99,14.61363899]
[1644489526532,44.29074903,114.1,114.0,34.83421629]
[1644489526833,44.29074903,114.1,114.0,47.73421629]
[1644489526834,1.24854445,114.09,114.0,47.73421629]
[1644489527032,4.384,114.09,114.0,43.35021629]
[1644489527732,4.384,114.09,114.02,13.1537]
[1644489527932,57.44544903,114.1,114.03,4.35640371]
[1644489528132,14.40324445,114.1,114.03,4.35640371]
[1644489528335,13.1547,114.1,114.03,4.60640371]
[1644489528534,1.24854445,114.11,114.03,4.60640371]
[1644489529133,14.40214445,114.11,114.03,17.76110371]
[1644489529336,13.1536,114.11,114.03,17.76110371]
[1644489529535,5.63154445,114.12,114.03,17.76110371]
[1644489530738,18.78404445,114.12,114.03,17.76110371]
[1644489531442,41.8811577,114.11,114.03,17.76110371]
[1644489532038,55.0342577,114.11,114.03,17.76110371]
[1644489534843,4.383,114.1,114.03,13.4047]
[1644489535144,13.1552,114.09,114.03,13.4047]
[1644489536143,59.4211232,114.09,114.03,13.4047]
[1644489537444,13.1552,114.09,114.03,13.4047]
[1644489537645,13.1552,114.09,114.02,13.1558]
[1644489537848,4.383,114.08,114.01,24.3485]
[1644489538048,13.1568,114.08,114.01,24.5985]
[1644489538647,57.27520587,114.08,114.01,50.15686723]
[1644489539252,57.27520587,114.08,114.01,0.25]
[1644489539752,57.27520587,114.08,113.99,12.9]
[1644489539953,17.5422,114.07,113.99,18.9]
[1644489540153,17.5422,114.07,113.99,12.9]
[1644489540352,17.5422,114.07,113.99,40.02750236]
[1644489540554,4.384,114.07,113.99,46.02750236]
[1644489540753,4.384,114.07,113.99,59.18580236]
[1644489541253,44.11840587,114.08,113.99,53.18580236]
[1644489541455,43.8594,114.1,113.99,53.18580236]
[1644489541854,13.1566,114.08,113.99,59.18580236]
[1644489542057,13.1566,114.08,113.99,53.18580236]
[1644489542252,13.1566,114.08,113.99,52.93580236]
[1644489542453,51.38666785,114.08,113.99,52.93580236]
[1644489543254,4.384,114.07,113.99,52.93580236]
[1644489543453,17.5416,114.07,113.99,52.93580236]
[1644489544778,17.5416,114.07,113.99,53.18580236]
[1644489544978,13.1576,114.07,113.99,53.18580236]
[1644489546981,17.5416,114.07,113.99,53.18580236]
[1644489548885,13.1563,114.08,113.99,53.18580236]
[1644489549283,13.1563,114.08,113.99,59.18580236]
[1644489549882,38.14544143,114.07,113.99,46.28580236]
[1644489550189,51.30314143,114.07,113.99,46.28580236]
[1644489550384,51.30314143,114.07,114.0,12.65]
[1644489550585,51.30314143,114.07,114.0,25.808]
[1644489550792,51.30314143,114.07,114.0,13.158]
[1644489551188,55.68714143,114.07,114.0,13.408]
[1644489551587,55.68714143,114.07,114.01,7.67911764]
[1644489551787,51.30314143,114.07,114.01,7.67911764]
[1644489552287,13.1577,114.07,114.01,7.67911764]
[1644489552690,13.1577,114.07,114.01,13.1578]
[1644489554487,40.18425789,114.06,114.01,13.1578]
[1644489554887,40.18425789,114.06,114.01,13.4078]
[1644489555288,13.1577,114.07,114.01,13.4078]
[1644489556188,1.24854445,114.09,114.01,13.4078]
[1644489556388,1.24854445,114.09,114.02,4.59490825]
[1644489556588,40.81455037,114.1,114.04,13.1534]
[1644489556790,1.24854445,114.1,114.04,13.4034]
[1644489557689,14.40234445,114.1,114.04,13.4034]
[1644489557891,14.40234445,114.1,114.04,39.75051259]
[1644489558089,18.78534445,114.1,114.04,39.75051259]
[1644489559190,17.5368,114.1,114.04,39.75051259]
[1644489559390,13.1527,114.11,114.04,39.75051259]
[1644489559591,1.25104262,114.1,114.04,39.75051259]
[1644489559791,14.40374262,114.11,114.04,39.75051259]
[1644489561396,14.40374262,114.11,114.04,13.1534]
[1644489561799,16.63496416,114.11,114.04,13.1534]
[1644489561997,14.40524262,114.1,114.04,13.1534]
[1644489562196,13.1542,114.1,114.04,13.1534]
[1644489562397,55.15185666,114.1,114.04,13.1534]
[1644489562597,56.40289928,114.1,114.04,13.1534]
[1644489562797,56.40289928,114.1,114.04,14.01276261]
[1644489563002,56.40289928,114.1,114.04,13.4034]
[1644489563227,18.78684262,114.11,114.04,13.4034]
[1644489563398,14.40384262,114.11,114.04,13.4034]
[1644489564198,42.7946456,114.1,114.04,13.4034]
[1644489564400,42.7946456,114.1,114.04,13.1534]
[1644489564598,55.9486456,114.1,114.03,13.1552]
[1644489564799,63.81390976,114.1,114.02,12.65]
[1644489565000,59.43090976,114.1,114.02,12.65]
[1644489565199,57.19968822,114.1,114.02,12.65]
[1644489565399,57.19968822,114.1,114.03,29.63654884]
[1644489566001,14.40504262,114.1,114.03,29.63654884]
[1644489566202,13.154,114.1,114.03,29.88654884]
[1644489566604,13.154,114.1,114.03,29.63654884]
[1644489566806,14.40504262,114.1,114.03,42.79194884]
[1644489567004,58.01513771,114.1,114.03,42.79194884]
[1644489567405,14.40504262,114.1,114.03,42.79194884]
[1644489567604,1.25104262,114.12,114.04,100.4]
[1644489567805,436.38486232,114.13,114.06,13.1483]
[1644489568005,436.38486232,114.13,114.07,12.65]
[1644489568405,436.38486232,114.13,114.08,5.17007116]
[1644489568605,436.38486232,114.13,114.08,17.82007116]
[1644489568805,436.38486232,114.13,114.08,18.07007116]
[1644489569005,436.38486232,114.13,114.08,26.0466]
[1644489569205,40.58638281,114.15,114.08,26.0466]
[1644489569405,1.25104262,114.15,114.08,26.0466]
[1644489569605,14.42294262,114.16,114.08,26.0466]
[1644489570007,1.27504262,114.16,114.08,28.01023899]
[1644489570207,0.024,114.16,114.08,121.76023899]
[1644489570407,5.65604262,114.17,114.09,31.35770698]
[1644489570606,0.024,114.16,114.11,13.1434]
[1644489570808,1.25104262,114.17,114.11,13.3934]
[1644489570809,1.27504262,114.17,114.11,13.3934]
[1644489571007,1.25104262,114.17,114.11,13.3934]
[1644489571407,1.25104262,114.17,114.12,3.44891302]
[1644489571606,1.25104262,114.17,114.12,16.59301302]
[1644489571809,1.25104262,114.17,114.12,16.84301302]
[1644489572008,1.27504262,114.19,114.12,16.84301302]
[1644489572209,1.25104262,114.19,114.12,16.84301302]
[1644489573208,43.3339679,114.19,114.12,16.59301302]
[1644489573412,43.3339679,114.19,114.12,13.1441]
[1644489573609,1.25104262,114.18,114.12,13.1441]
[1644489573809,1.25104262,114.17,114.12,13.1441]
[1644489575309,1.25104262,114.18,114.12,13.1441]
[1644489575710,14.39604262,114.18,114.12,13.1441]
[1644489575912,14.39604262,114.18,114.13,6.30013599]
[1644489576111,1.25104262,114.19,114.13,13.1438]
[1644489576310,1.25104262,114.19,114.13,13.3938]
[1644489576910,14.39484262,114.19,114.13,0.25]
[1644489577110,37.18405086,114.18,114.13,0.25]
[1644489577311,41.56405086,114.18,114.1,82.04671374]
[1644489577610,37.20805086,114.18,114.12,13.1441]
[1644489577810,41.58805086,114.18,114.12,13.1441]
[1644489578310,41.58805086,114.18,114.12,13.3941]
[1644489578512,41.58805086,114.18,114.12,22.86500626]
[1644489578710,41.58805086,114.18,114.12,13.1441]
[1644489578910,1.25104262,114.17,114.11,13.1463]
[1644489579111,4.38,114.16,114.11,13.1463]
[1644489579309,1.25104262,114.17,114.11,13.1463]
[1644489579510,1.27504262,114.17,114.11,13.1463]
[1644489579711,1.25104262,114.17,114.11,13.1463]
[1644489580711,14.39704262,114.17,114.11,13.1463]
[1644489580914,39.29003775,114.16,114.11,13.1463]
[1644489581215,43.67003775,114.16,114.1,13.1469]
[1644489581414,2.50208524,114.21,114.11,96.0]
[1644489581612,1.22485466,114.19,114.16,158.11]
[1644489581811,3.75312786,114.25,114.16,158.11]
[1644489581812,2.50208524,114.28,114.18,82.0]
[1644489582013,0.024,114.22,114.19,12.65]
[1644489582212,0.024,114.27,114.2,17.51]
[1644489582413,2.50208524,114.32,114.21,12.65]
[1644489582414,0.024,114.29,114.21,12.65]
[1644489582712,35.42223965,114.31,114.21,12.65]
[1644489582911,24.5848,114.33,114.21,12.65]
[1644489582912,37.16331947,114.29,114.21,18.9]
[1644489583113,37.13931947,114.29,114.21,18.9]
[1644489583317,37.16331947,114.29,114.21,18.9]
[1644489583713,37.16331947,114.29,114.22,13.1313]
[1644489583914,37.13931947,114.29,114.23,12.65]
[1644489584112,37.16331947,114.29,114.23,12.65]
[1644489584312,37.13931947,114.29,114.23,12.9]
[1644489585512,37.13931947,114.29,114.23,26.0312]
[1644489590517,37.13931947,114.29,114.23,12.9]
[1644489595520,37.13931947,114.29,114.23,12.65]
[1644489596727,37.13931947,114.29,114.23,25.7815]
[1644489597325,37.13931947,114.29,114.23,26.0315]
[1644489597525,0.024,114.3,114.23,53.30728839]
[1644489597725,0.024,114.32,114.23,27.99583607]
[1644489597927,0.024,114.34,114.23,27.99583607]
[1644489598124,0.024,114.32,114.23,33.99583607]
[1644489598325,0.024,114.33,114.23,33.99583607]
[1644489598525,4.399,114.34,114.23,33.99583607]
[1644489598727,0.024,114.32,114.23,33.99583607]
[1644489598929,39.99984195,114.31,114.23,33.99583607]
[1644489599126,40.02384195,114.31,114.23,33.99583607]
[1644489599728,40.02384195,114.31,114.23,32.0315]
[1644489604259,62.12724195,114.31,114.23,12.65]
[1644489604562,4.375,114.3,114.19,17.025]
[1644489604760,4.399,114.3,114.19,17.025]
[1644489605158,44.8154263,114.29,114.2,27.73532928]
[1644489605359,44.8154263,114.29,114.22,13.1307]
[1644489605560,44.8154263,114.29,114.22,25.7807]
[1644489605762,44.8154263,114.29,114.22,26.0307]
[1644489605961,44.8154263,114.29,114.22,33.10199072]
[1644489606362,44.8154263,114.29,114.22,26.0307]
[1644489607062,0.024,114.3,114.23,4.376]
[1644489607260,0.024,114.31,114.23,19.24033607]
[1644489607461,28.612,114.32,114.24,13.1288]
[1644489607762,37.3671,114.32,114.24,26.0288]
[1644489607963,37.38656018,114.31,114.24,12.9]
[1644489608160,41.76156018,114.31,114.24,12.65]
[1644489609361,41.76156018,114.31,114.24,12.9]
[1644489609763,54.89236018,114.31,114.24,12.9]
[1644489610062,54.89236018,114.31,114.24,12.65]
[1644489610864,57.39444542,114.31,114.24,12.65]
[1644489611263,57.39444542,114.31,114.24,12.9]
[1644489611666,15.63125096,114.3,114.24,0.25]
[1644489611867,18.1333362,114.3,114.22,18.9]
[1644489612065,15.65818524,114.3,114.22,18.9]
[1644489612463,40.3334449,114.29,114.22,18.9]
[1644489613066,53.4657449,114.29,114.22,12.65]
[1644489613266,5.00159623,114.28,114.17,68.1612]
[1644489613465,2.50208524,114.26,114.17,37.0321]
[1644489613666,4.377,114.25,114.17,12.65]
[1644489613869,4.401,114.25,114.17,12.65]
[1644489614069,35.20643775,114.24,114.17,12.65]
[1644489614269,38.04973825,114.22,114.17,12.65]
[1644489614468,45.30673825,114.22,114.17,12.65]
[1644489614675,45.30673825,114.22,114.17,12.9]
[1644489615868,45.30673825,114.22,114.17,26.0376]
[1644489616069,45.30673825,114.22,114.17,25.7876]
[1644489616273,45.30673825,114.22,114.17,12.65]
[1644489618172,45.30673825,114.22,114.15,25.7899]
[1644489618372,38.04973825,114.22,114.15,26.0399]
[1644489618774,45.87773825,114.22,114.15,26.0399]
[1644489619176,59.01823825,114.22,114.1,4.378]
[1644489619375,17.3357325,114.21,114.05,4.378]
[1644489619575,17.3357325,114.21,114.06,38.53330357]
[1644489619576,36.36311647,114.2,114.06,38.53330357]
[1644489619777,17.03,114.19,114.06,38.53330357]
[1644489619974,47.75343111,114.18,114.06,38.53330357]
[1644489620174,17.031,114.17,114.06,38.53330357]
[1644489620375,39.72939906,114.16,114.06,38.53330357]
[1644489620577,43.47931622,114.14,114.06,38.53330357]
[1644489622384,43.47931622,114.14,114.06,38.78330357]
[1644489623784,17.531,114.16,114.06,38.78330357]
[1644489624783,43.40902559,114.15,114.06,38.78330357]
[1644489625383,17.531,114.16,114.06,38.78330357]
[1644489626286,36.47267936,114.15,114.06,38.78330357]
[1644489626484,46.61867936,114.15,114.06,38.78330357]
[1644489627109,10.146,114.15,114.06,38.78330357]
[1644489627509,4.381,114.14,114.06,38.78330357]
[1644489627808,12.11,114.14,114.06,38.53330357]
[1644489628707,13.1493,114.15,114.06,38.53330357]
[1644489629107,59.82903247,114.15,114.06,38.78330357]
[1644489629507,59.82903247,114.15,114.06,38.53330357]
[1644489630310,4.382,114.16,114.07,87.75]
[1644489630511,13.1476,114.17,114.07,87.75]
[1644489630712,13.1476,114.17,114.07,104.781]
[1644489630912,13.1476,114.17,114.07,105.031]
[1644489631309,56.26621555,114.17,114.08,38.33249428]
[1644489631708,56.26621555,114.17,114.08,38.58249428]
[1644489635220,4.381,114.19,114.08,126.33249428]
[1644489635221,13.1456,114.18,114.08,126.33249428]
[1644489635518,4.38,114.2,114.09,100.4]
[1644489635719,0.024,114.21,114.09,100.4]
[1644489635919,4.38,114.2,114.1,49.0544]
[1644489636119,0.024,114.21,114.11,12.65]
[1644489636320,17.5213,114.2,114.11,58.44220022]
[1644489636518,44.72958926,114.19,114.11,58.44220022]
[1644489637523,44.72958926,114.19,114.09,12.65]
[1644489637524,2.23122154,114.18,114.09,12.65]
[1644489637725,12.65,114.17,114.05,47.723]
[1644489637928,4.381,114.16,114.05,53.723]
[1644489638130,12.65,114.15,114.05,47.723]
[1644489638323,50.22587834,114.14,114.06,36.53212418]
[1644489638523,75.02907834,114.14,114.06,36.53212418]
[1644489639523,87.67907834,114.14,114.06,36.53212418]
[1644489639930,12.65,114.14,114.06,40.91412418]
[1644489640336,12.65,114.17,114.06,41.16412418]
[1644489640530,17.031,114.17,114.06,40.91412418]